Cogmind - Beta 15 @@@ ROGUE MODE // 2025.05.07 @ 21:05:37 Player: LightKnight Result: Heading to fleet! Performance ------------- Evolutions (9) 4500 Regions Visited (19) 3800 Robots Destroyed (20) 100 Value Destroyed (539) 539 Prototype IDs (40) 800 Alien Tech Used (3) 600 Bonus (12298) 12298 TOTAL SCORE: 22637 Bonus ------- Follower Combat Kills 198 Entered DSFs 500 Registered with UFD 300 Met Optimus in HQ 500 Met Zhirov 300 Found Hidden Lab 3000 Used Core Reset Matrix 3000 Scanned by Researcher 500 Pursued by Intercept 1000 Win 3000 Cogmind --------- Core Integrity 1552/1600 Matter 270/300 Energy 78/150 System Corruption 1% Temperature Cool (12) Movement Flying (19) Location To Fleet Rendezvous Parts ------- > --- POWER (2) -------- Light Angular Momentum Engine > --- PROPULSION (6) --- Cooled Field Propulsion Drive Cooled Field Propulsion Drive Cooled Field Propulsion Drive Cooled Field Propulsion Drive Cooled Field Propulsion Drive Cooled Field Propulsion Drive > --- UTILITY (15) ----- Advanced Power Amplifier Experimental Optical Array Advanced Signal Interpreter Advanced Cloaking Device Advanced Hacking Suite System Shield Advanced System Shield Quantum Router > --- WEAPON (2) ------- (None) > --- INVENTORY (5) ---- Impulse Thruster Transdimensional Reconstructor Core Regenerator Enhanced Nova Cannon Advanced Datajack Peak State ------------ > --- POWER ------------ Light Angular Momentum Engine Fusion Reactor > --- PROPULSION ------- Cooled Field Propulsion Drive Cooled Field Propulsion Drive Cooled Field Propulsion Drive Cooled Field Propulsion Drive Cooled Field Propulsion Drive Cooled Field Propulsion Drive > --- UTILITY ---------- Advanced Power Amplifier Experimental Optical Array Long-range Sensor Array Advanced Signal Interpreter ECM Suite Advanced Reaction Control System Advanced Cloaking Device Advanced Hacking Suite Advanced System Shield Advanced System Shield Quantum Router > --- WEAPON ----------- Warp Gun Katana > --- INVENTORY -------- Q-thruster Q-thruster Transdimensional Reconstructor Core Regenerator Enhanced Nova Cannon [Rating: 148] Favorites ----------- Power Improved Ion Engine Engine Improved Ion Engine Power Core Light Nuclear Core Reactor Fusion Reactor Propulsion Spiked Treads Treads Spiked Treads Leg Overtuned Titanium Leg Hover Unit Cooled Gravmag System Flight Unit Cooled Field Propulsion Drive Utility Advanced System Shield Device Disposable Heat Sink Storage Medium Storage Unit Processor Improved Signal Interpreter Hackware Advanced System Shield Protection Experimental Power Shielding Weapon Makeshift Axe Energy Gun Medium Laser Energy Cannon Heavy Plasma Cannon Ballistic Gun Battle Rifle Launcher Rocket Launcher Special Weapon Mining Laser Impact Weapon Heavy Hammer Slashing Weapon Makeshift Axe Special Melee Weapon Advanced Datajack Build | -11 -10 -10 -10 -8 -8 -6 -6 -5 -5 -5 -5 -4 -4 -4 -4 -3 -3 -2 -1 ------- Run | Yrd Mat Min Sub Rec Scr Fac DSF Fac Upp Upp Zhi Pro Fac Arm Lab Res Tes Res Acc Slots Evolved 18 | . . . . . . 8 . 2 . . . . 2 . . 2 . 2 2 Power 1 | . . . . . . . . 1 . . . . . . . . . . . Propulsion 4 | . . . . . . 2 . 1 . . . . . . . 1 . . . Utility 13 | . . . . . . 6 . . . . . . 2 . . 1 . 2 2 Weapon . | . . . . . . . . . . . . . . . . . . . . Parts Attached 80 | 1 2 1 11 1 5 10 9 3 1 . 7 1 2 13 2 2 2 2 5 Power 8 | . . . 2 . 1 1 . 1 . . 1 . . 1 . . . 1 . Engine 4 | . . . 2 . 1 . . . . . . . . 1 . . . . . Core 2 | . . . . . . 1 . 1 . . . . . . . . . . . Reactor 2 | . . . . . . . . . . . 1 . . . . . . 1 . Propulsion 24 | . . . 4 . 2 3 3 . . . 3 . 1 6 . 1 1 . . Treads 4 | . . . 4 . . . . . . . . . . . . . . . . Leg 4 | . . . . . 2 1 . . . . . . . 1 . . . . . Wheel . | . . . . . . . . . . . . . . . . . . . . Hover 5 | . . . . . . 1 . . . . 3 . 1 . . . . . . Flight 11 | . . . . . . 1 3 . . . . . . 5 . 1 1 . . Utility 35 | . . . 2 1 1 6 5 1 1 . 2 1 1 6 2 1 . 1 4 Device 17 | . . . 2 . 1 4 . . 1 . 1 1 1 4 . . . . 2 Storage 1 | . . . . 1 . . . . . . . . . . . . . . . Processor 6 | . . . . . . 1 . 1 . . . . . 1 . 1 . 1 1 Hackware 9 | . . . . . . 1 5 . . . . . . 1 1 . . . 1 Protection 2 | . . . . . . . . . . . 1 . . . 1 . . . . Artifact . | . . . . . . . . . . . . . . . . . . . . Weapon 13 | 1 2 1 3 . 1 . 1 1 . . 1 . . . . . 1 . 1 Energy Gun 4 | . 1 . 1 . 1 . . . . . . . . . . . 1 . . Energy Cannon 1 | . . . . . . . . 1 . . . . . . . . . . . Ballistic Gun 2 | 1 . . 1 . . . . . . . . . . . . . . . . Ballistic Cannon . | . . . . . . . . . . . . . . . . . . . . Launcher 2 | . . 1 . . . . 1 . . . . . . . . . . . . Special Weapon 1 | . 1 . . . . . . . . . . . . . . . . . . Impact Weapon . | . . . . . . . . . . . . . . . . . . . . Slashing Weapon 2 | . . . 1 . . . . . . . 1 . . . . . . . . Piercing Weapon . | . . . . . . . . . . . . . . . . . . . . Special Melee Weapon 1 | . . . . . . . . . . . . . . . . . . . 1 Unidentified Prototypes 12 | . . . . . . 2 . . . . 4 . . 1 3 . 1 . 1 Parts Lost 22 | . . . . 1 . . 6 3 . . . . 1 1 . . 5 . 5 Power 4 | . . . . . . . . 1 . . . . 1 . . . 1 . 1 Propulsion 4 | . . . . . . . 2 1 . . . . . . . . 1 . . Utility 10 | . . . . . . . 2 1 . . . . . 1 . . 3 . 3 Weapon 4 | . . . . 1 . . 2 . . . . . . . . . . . 1 Highest Loss Streak 6 | . . . . 1 . . 6 3 . . . . 1 1 . . 5 . 4 To Critical Strikes . | . . . . . . . . . . . . . . . . . . . . Average Backups 6 | 6 6 7 7 7 7 3 4 4 4 4 4 5 4 4 4 3 4 3 4 Power . | 1 1 1 . . . . 1 . . . . . . . . . . . . Propulsion 1 | 4 4 4 3 3 2 . . . . . . . . 1 1 . 1 . 1 Utility 1 | . . . . 1 1 . 1 2 2 2 2 3 2 1 1 . . . . Weapon 2 | 1 1 2 3 3 2 2 2 2 1 2 1 1 1 1 1 1 1 1 1 Tool/Special . | . . . . . . . . . . . . . . . . . . . . Unused Backups 18 | . . . 3 . 5 . . 2 . . . . . 2 1 . 1 . 4 Power 1 | . . . 1 . . . . . . . . . . . . . . . . Propulsion 6 | . . . 2 . 1 . . . . . . . . 1 . . 1 . 1 Utility 3 | . . . . . 2 . . 1 . . . . . . . . . . . Weapon 6 | . . . . . 2 . . 1 . . . . . 1 1 . . . 1 Tool/Special 2 | . . . . . . . . . . . . . . . . . . . 2 Average Slot Usage (%) 84 | . 85 85 93 94 84 46 61 68 63 64 93 100 96 92 92 94 94 75 74 Engine 9 | . 14 14 14 14 13 4 . . . . . . . 2 5 4 3 4 4 Core 1 | . . . . . . 1 6 7 5 5 5 5 5 . . . . . . Treads 14 | . . . 27 28 24 . . . . . . . . . . . . . . Leg 2 | . 28 28 . . 3 6 . . . . . . . . . . . . . Hover 3 | . . . . . . 4 6 5 5 5 20 23 23 10 . . . . . Flight 4 | . . . . . . 1 9 8 5 5 5 5 2 15 26 28 28 25 24 Device 12 | . . . 8 14 14 13 17 5 10 11 10 11 17 21 19 22 22 17 15 Storage 7 | . 14 14 14 14 11 . . . . . . . . . . . . . . Processor 2 | . . . . . . 5 4 4 5 5 5 5 5 6 10 9 8 6 8 Hackware 8 | . . . . . . . 11 32 29 29 29 29 26 22 21 19 18 13 13 Energy Gun 1 | . 11 14 5 . 1 1 . . . . . . . . . . . . . Ballistic Gun 1 | . 14 12 7 . . . . . . . . . . . . . . . . Launcher 3 | . . 1 13 8 . . . . . . . . . . . . . . . Slashing Weapon 6 | . . . . 14 12 2 3 . . . 4 5 5 5 5 4 4 4 3 Peak Build Rating 148 | 6 6 7 16 16 27 46 67 69 57 57 94 95 107 123 131 142 148 128 142 Average Rating 41 | 6 6 6 11 15 15 33 48 60 56 57 88 94 102 106 121 137 140 125 131 On Entrance 63 | 6 6 6 7 16 14 27 44 67 52 57 57 94 95 104 121 128 140 102 128 Naked Turns . | . . . . . . . . . . . . . . . . . . . . Heaviest Build 42 | 13 13 16 20 25 27 28 17 16 16 7 31 31 35 32 32 34 41 39 42 Greatest Support 55 | 20 20 20 40 40 40 55 32 26 7 7 42 42 51 51 35 42 42 42 54 Greatest Overweight (x) 4 | . . . . . . . . 2 2 . . . . 4 . . 1 . . Average Overweight (x) . | . . . . . . . . . . . . . . . . . . . . Largest Inventory Capacity 10 | 8 8 8 8 10 10 5 5 5 5 5 5 5 5 5 5 5 5 5 5 Average Capacity 7 | 8 8 8 8 9 9 5 5 5 5 5 5 5 5 5 5 5 5 5 5 Most Carried 9 | 6 7 8 8 8 9 5 5 5 5 5 5 5 5 5 5 5 5 4 5 Average Carried 6 | 6 6 7 7 7 7 3 4 4 4 4 4 5 4 4 4 3 4 3 4 Final Capacity 10 | 8 8 8 8 10 5 5 5 5 5 5 5 5 5 5 5 5 5 5 5 Final Carried 8 | 6 7 8 7 8 5 5 5 5 4 5 5 5 5 5 5 5 5 4 5 Class Distribution -------------------- 58% | Mutant 21% | Wizard-Mutant 4% | Wizard-Ninja 4% | Hacker-Ninja Dominant Class ---------------- Mutant | -10/Materials Mutant | -10/Mines Mutant | -10/Subcaves Mutant | -8/Recycling Mutant | -8/Scraptown Mutant | -6/Factory Mutant | -6/DSF Wizard-Mutant | -5/Factory Wizard-Mutant | -5/Upper Caves Wizard-Mutant | -5/Upper Caves Wizard-Mutant | -5/Zhirov Wizard-Mutant | -4/Proximity Caves Wizard-Sprinter | -4/Factory Commander-Sprinter | -4/Armory Commander-Sprinter | -4/Lab Wizard-Ninja | -3/Research Wizard-Ninja | -3/Testing Hacker-Ninja | -2/Research Wizard-Ninja | -1/Access Resources | -11 -10 -10 -10 -8 -8 -6 -6 -5 -5 -5 -5 -4 -4 -4 -4 -3 -3 -2 -1 ----------- Run | Yrd Mat Min Sub Rec Scr Fac DSF Fac Upp Upp Zhi Pro Fac Arm Lab Res Tes Res Acc Matter Collected 1329 | 210 . 46 260 30 . . 2 . 207 84 120 . 19 88 183 . 40 40 . Remotely . | . . . . . . . . . . . . . . . . . . . . Salvage Created 806 | . . 80 209 128 . . 26 . 40 . 275 . . . . . 48 . . Parts 53 | . . 9 19 10 . . 8 . 2 . 3 . . . . . 2 . . Haulers Intercepted . | . . . . . . . . . . . . . . . . . . . . Recyclers Shooed 1 | . . . . 1 . . . . . . . . . . . . . . . Parts Field Recycled . | . . . . . . . . . . . . . . . . . . . . Retrieved Matter . | . . . . . . . . . . . . . . . . . . . . Parts Self-Destructed 13 | . . . 10 . . . . . . . 3 . . . . . . . . Prevented . | . . . . . . . . . . . . . . . . . . . . Kills | -11 -10 -10 -10 -8 -8 -6 -6 -5 -5 -5 -5 -4 -4 -4 -4 -3 -3 -2 -1 ------- Run | Yrd Mat Min Sub Rec Scr Fac DSF Fac Upp Upp Zhi Pro Fac Arm Lab Res Tes Res Acc Combat Hostiles Destroyed 18 | . . 6 8 2 . . 2 . . . . . . . . . . . . Melee 3 | . . . 1 2 . . . . . . . . . . . . . . . Guns 8 | . . 6 2 . . . . . . . . . . . . . . . . AOE 7 | . . . 5 . . . 2 . . . . . . . . . . . . Classes Destroyed 7 | . . 1 2 1 . . 1 . 1 . . . . . . . 1 . . Builder 1 | . . . . 1 . . . . . . . . . . . . . . . Swarmer 9 | . . 6 3 . . . . . . . . . . . . . . . . Cutter 2 | . . . . . . . 2 . . . . . . . . . . . . Researcher 1 | . . . . . . . . . . . . . . . . . 1 . . Sentry 3 | . . . 1 2 . . . . . . . . . . . . . . . Subdweller 4 | . . . 4 . . . . . . . . . . . . . . . . Samaritan 1 | . . . . . . . . . 1 . . . . . . . . . . Best Kill Streak 3 | . . 3 3 1 . . 2 . . . . . . . . . 1 . . Combat Bots Only 3 | . . 3 3 1 . . 2 . . . . . . . . . . . . Max Kills in Single Turn 2 | . . 1 2 1 . . 2 . 1 . . . . . . . 1 . . Gunslinging . | . . . . . . . . . . . . . . . . . . . . Exploded 2 | . . . 1 . . . 2 . . . . . . . . . . . . Melee 1 | . . . 1 1 . . . . . . . . . . . . . . . Uniques/NPCs Destroyed . | . . . . . . . . . . . . . . . . . . . . Combat | -11 -10 -10 -10 -8 -8 -6 -6 -5 -5 -5 -5 -4 -4 -4 -4 -3 -3 -2 -1 -------- Run | Yrd Mat Min Sub Rec Scr Fac DSF Fac Upp Upp Zhi Pro Fac Arm Lab Res Tes Res Acc Hostile Shots Fired 210 | . . 35 34 6 . . 9 4 5 10 . 10 8 6 . . 49 3 31 Missed 98 | . . 11 17 1 . . 3 4 4 5 . 7 4 1 . . 21 2 18 Hits 112 | . . 24 17 5 . . 6 . 1 5 . 3 4 5 . . 28 1 13 Melee 1 | . . . . . . . 1 . . . . . . . . . . . . Projectile 111 | . . 24 17 5 . . 5 . 1 5 . 3 4 5 . . 28 1 13 Critical Strikes 10 | . . . 1 . . . 3 . . . . . . 1 . . 4 . 1 Damage Taken 2207 | . . 196 286 74 . 57 264 138 20 92 . 52 115 108 . . 452 20 333 Core 498 | . . 51 45 . . 41 96 48 20 20 . 24 29 35 . . 41 . 48 Absorbed by Shields 11 | . . . . . . . . . . . . . . 11 . . . . . Core Remaining (%) 88 | 100 . . . . 61 . 83 . . . . 88 . . 86 . 96 100 97 Volleys Fired 66 | . 1 16 13 . . . 2 6 6 . . 20 . . . . 2 . . Largest 2 | . 1 2 2 . . . 1 1 1 . . 1 . . . . 1 . . Hottest 100 | . 100 70 100 . . . 39 90 90 . . 90 . . . . 90 . . Shots Fired 91 | . 1 32 22 . . . 2 6 6 . . 20 . . . . 2 . . Gun 44 | . . 32 10 . . . . . . . . . . . . . 2 . . Cannon 32 | . . . . . . . . 6 6 . . 20 . . . . . . . Launcher 10 | . . . 8 . . . 2 . . . . . . . . . . . . Special 5 | . 1 . 4 . . . . . . . . . . . . . . . . Kinetic 20 | . . 16 4 . . . . . . . . . . . . . . . . Thermal 60 | . 1 16 9 . . . . 6 6 . . 20 . . . . 2 . . Explosive 10 | . . . 8 . . . 2 . . . . . . . . . . . . Electromagnetic 1 | . . . 1 . . . . . . . . . . . . . . . . Robot Hit Streak 11 | . . 4 11 . . . . . 4 . . . . . . . 3 . . Robot Miss Streak 6 | . . 4 2 . . . 2 6 1 . . . . . . . . . . Penetration Max . | . . . . . . . . . . . . . . . . . . . . Secondary Targets . | . . . . . . . . . . . . . . . . . . . . Shots Hit Robots 63 | . . 15 23 5 . . . . 5 . 6 . . . . . 9 . . Core Hits 31 | . . 7 15 2 . . 2 . 1 . 3 . . . . . 1 . . Critical Kills . | . . . . . . . . . . . . . . . . . . . . Critical Parts Destroyed . | . . . . . . . . . . . . . . . . . . . . Critical Strikes 2 | . . 2 . . . . . . . . . . . . . . . . . Burn 2 | . . 2 . . . . . . . . . . . . . . . . . Melee Attacks 67 | . . . 10 5 . 3 . . . . 6 9 2 7 4 2 10 6 3 Impact . | . . . . . . . . . . . . . . . . . . . . Slashing 67 | . . . 10 5 . 3 . . . . 6 9 2 7 4 2 10 6 3 Piercing . | . . . . . . . . . . . . . . . . . . . . Sneak Attacks 3 | . . . . 3 . . . . . . . . . . . . . . . Combat Hostiles . | . . . . . . . . . . . . . . . . . . . . Follow-up Attacks . | . . . . . . . . . . . . . . . . . . . . Damage Inflicted 2736 | . . 174 1230 279 . . 124 . 162 . 408 . . . . . 359 . . Guns 321 | . . 174 93 . . . . . . . . . . . . . 54 . . Cannons 162 | . . . . . . . . . 162 . . . . . . . . . . Explosions 718 | . . . 594 . . . 124 . . . . . . . . . . . . Melee 1535 | . . . 543 279 . . . . . . 408 . . . . . 305 . . Ramming . | . . . . . . . . . . . . . . . . . . . . Kinetic 106 | . . 74 32 . . . . . . . . . . . . . . . . Thermal 391 | . . 100 75 . . . . . 162 . . . . . . . 54 . . Explosive 694 | . . . 570 . . . 124 . . . . . . . . . . . . Electromagnetic 10 | . . . 10 . . . . . . . . . . . . . . . . Impact . | . . . . . . . . . . . . . . . . . . . . Slashing 1535 | . . . 543 279 . . . . . . 408 . . . . . 305 . . Piercing . | . . . . . . . . . . . . . . . . . . . . Highest Corruption 1 | . . . . . . . . . . . . . . . . . . . 1 Average Corruption 1 | . . . . . . . . . . . . . . . . . . . 1 Corruption Purged . | . . . . . . . . . . . . . . . . . . . . Corruption Blocked . | . . . . . . . . . . . . . . . . . . . . Overload Shots . | . . . . . . . . . . . . . . . . . . . . Overflow Damage 178 | . . . 6 61 . . . . 58 . 14 . . . . . 39 . . Projectiles 58 | . . . . . . . . . 58 . . . . . . . . . . Explosions 6 | . . . 6 . . . . . . . . . . . . . . . . Melee 114 | . . . . 61 . . . . . . 14 . . . . . 39 . . Knockbacks . | . . . . . . . . . . . . . . . . . . . . Impact . | . . . . . . . . . . . . . . . . . . . . Kinetic . | . . . . . . . . . . . . . . . . . . . . Secondary . | . . . . . . . . . . . . . . . . . . . . Self-Inflicted Damage 107 | . . . 71 . . . 36 . . . . . . . . . . . . Shots 3 | . . . 2 . . . 1 . . . . . . . . . . . . Rammed . | . . . . . . . . . . . . . . . . . . . . Targets Rammed . | . . . . . . . . . . . . . . . . . . . . Kicked . | . . . . . . . . . . . . . . . . . . . . Crushed . | . . . . . . . . . . . . . . . . . . . . Highest Temperature 411 | . 20 160 10 . . . . 56 56 . . 124 . 1 . . . . 411 Average Temperature 59 | . 10 66 9 . . . . 33 25 . . 57 . 1 . . . . 223 Received Heat Transfer 157 | . . . 45 27 . . . . 9 18 . . 18 40 . . . . . Siege Activations . | . . . . . . . . . . . . . . . . . . . . Martial Activations . | . . . . . . . . . . . . . . . . . . . . Shielding Activations . | . . . . . . . . . . . . . . . . . . . . Robots Disrupted . | . . . . . . . . . . . . . . . . . . . . Combat Hostiles . | . . . . . . . . . . . . . . . . . . . . Robots Corrupted . | . . . . . . . . . . . . . . . . . . . . Combat Hostiles . | . . . . . . . . . . . . . . . . . . . . Parts Fried . | . . . . . . . . . . . . . . . . . . . . Impact Corruptions . | . . . . . . . . . . . . . . . . . . . . Robots Melted . | . . . . . . . . . . . . . . . . . . . . Combat Hostiles . | . . . . . . . . . . . . . . . . . . . . Parts Melted . | . . . . . . . . . . . . . . . . . . . . Heat Transferred 916 | . . 444 148 . . . . . 250 . . . . . . . 74 . . Parts Sabotaged . | . . . . . . . . . . . . . . . . . . . . Parts Stolen . | . . . . . . . . . . . . . . . . . . . . Parts Stripped . | . . . . . . . . . . . . . . . . . . . . Power Chain Reactions 1 | . . . 1 . . . . . . . . . . . . . . . . Alert | -11 -10 -10 -10 -8 -8 -6 -6 -5 -5 -5 -5 -4 -4 -4 -4 -3 -3 -2 -1 ------- Run | Yrd Mat Min Sub Rec Scr Fac DSF Fac Upp Upp Zhi Pro Fac Arm Lab Res Tes Res Acc Maximum Alert Level 1 | . . . . . . . . . . . . . . 1 . . . . . Low Security (%) 99 | 100 100 100 . 100 . 100 100 100 . . . . 100 96 . 100 100 100 100 Level 1 . | . . . . . . . . . . . . . . 3 . . . . . Level 2 . | . . . . . . . . . . . . . . . . . . . . Level 3 . | . . . . . . . . . . . . . . . . . . . . Level 4 . | . . . . . . . . . . . . . . . . . . . . Level 5 . | . . . . . . . . . . . . . . . . . . . . High Security . | . . . . . . . . . . . . . . . . . . . . Max Security . | . . . . . . . . . . . . . . . . . . . . Peak Influence 231 | . 15 81 . 28 . 30 63 16 . . . . 15 231 . 17 35 32 21 Initial 28 | . . 1 . 28 . . 2 16 . . . . . . . . 3 . . Average 13 | . 2 51 . 1 . 5 19 5 . . . . 3 83 . 2 4 6 1 Influence Increases 1359 | . 15 140 140 66 . 82 88 27 150 60 15 45 19 367 . 17 35 51 42 Destroy 0b10 Robot/C 440 | . . 120 80 40 . . 40 . . . . . . 140 . . 20 . . Destroy 0b10 Robot/NC 25 | . . . . 5 . . . . . . 15 . . 5 . . . . . Destroy Leader 52 | . . 20 . . . . 10 . . . . . . 22 . . . . . Allied During Kill 119 | . . . . . . . . . . . . . . 119 . . . . . Successful Hack 106 | . . . . 21 . 4 . . . . . . . 12 . . . 30 39 Disable Machine 90 | . 15 . . . . . . . . . . . . 30 . 15 15 15 . Destroy Structure 77 | . . . . . . 3 23 12 . . . . 4 24 . 2 . 6 3 Partial Spotted 90 | . . . . . . 45 . 15 . . . . 15 15 . . . . . Lose Combat Pursuer 360 | . . . 60 . . 30 15 . 150 60 . 45 . . . . . . . Influence Decreases 1338 | . 10 104 121 126 . 78 59 60 136 74 15 45 19 262 105 10 42 51 21 Entered New Map 190 | . . 4 22 32 . . 2 17 . 4 . . . . 105 . 4 . . Time Decay 878 | . 10 100 99 94 . 78 . 38 136 70 15 45 19 100 . 10 13 51 . Lost Part 85 | . . . . . . . 57 5 . . . . . 2 . . . . 21 Lost Ally 160 | . . . . . . . . . . . . . . 160 . . . . . Purge Threat 25 | . . . . . . . . . . . . . . . . . 25 . . Squads Dispatched 16 | . 1 . . . . 1 1 . . . . . . 4 . . 3 1 5 Investigation 2 | . 1 . . . . . . . . . . . . 1 . . . . . Extermination 5 | . . . . . . 1 . . . . . . . 1 . . . 1 2 Reinforcement 4 | . . . . . . . 1 . . . . . . 2 . . 1 . . Assault . | . . . . . . . . . . . . . . . . . . . . Garrison . | . . . . . . . . . . . . . . . . . . . . Intercept 5 | . . . . . . . . . . . . . . . . . 2 . 3 Searches Triggered . | . . . . . . . . . . . . . . . . . . . . Construction Impeded . | . . . . . . . . . . . . . . . . . . . . Haulers Reinforced . | . . . . . . . . . . . . . . . . . . . . Active Scanning Responses . | . . . . . . . . . . . . . . . . . . . . Cargo Convoy Interrupts . | . . . . . . . . . . . . . . . . . . . . Stealth | -11 -10 -10 -10 -8 -8 -6 -6 -5 -5 -5 -5 -4 -4 -4 -4 -3 -3 -2 -1 --------- Run | Yrd Mat Min Sub Rec Scr Fac DSF Fac Upp Upp Zhi Pro Fac Arm Lab Res Tes Res Acc Distress Signals 2 | . . . . . . . . . . . . . . 1 . . 1 . . Communications Jammed 5 | . . . . . . . . . . . . 5 . . . . . . . Distress Signals . | . . . . . . . . . . . . . . . . . . . . Times Spotted 85 | . 1 6 13 2 . 1 4 3 6 6 . 4 5 7 . . 8 5 14 Peak Tracking Total 8 | . 1 3 6 1 . 2 3 3 5 4 . 3 4 4 . . 8 4 8 Tactical Retreats 14 | . . . 1 . . 1 1 . 3 2 . 2 . . . . . 1 3 Traps | -11 -10 -10 -10 -8 -8 -6 -6 -5 -5 -5 -5 -4 -4 -4 -4 -3 -3 -2 -1 ------- Run | Yrd Mat Min Sub Rec Scr Fac DSF Fac Upp Upp Zhi Pro Fac Arm Lab Res Tes Res Acc Traps Triggered 6 | . 1 . . . . 1 . 1 . . . . 1 1 . . . . 1 Indirectly . | . . . . . . . . . . . . . . . . . . . . Trap Hack Attempts . | . . . . . . . . . . . . . . . . . . . . Triggered . | . . . . . . . . . . . . . . . . . . . . Disarmed . | . . . . . . . . . . . . . . . . . . . . Reprogrammed . | . . . . . . . . . . . . . . . . . . . . Reused . | . . . . . . . . . . . . . . . . . . . . Traps Extracted . | . . . . . . . . . . . . . . . . . . . . Installed 1 | . . . . . . . . . . . . 1 . . . . . . . Triggered . | . . . . . . . . . . . . . . . . . . . . Machines | -11 -10 -10 -10 -8 -8 -6 -6 -5 -5 -5 -5 -4 -4 -4 -4 -3 -3 -2 -1 ---------- Run | Yrd Mat Min Sub Rec Scr Fac DSF Fac Upp Upp Zhi Pro Fac Arm Lab Res Tes Res Acc Machines Disabled 8 | . 1 . . . . . . . . . . . . 2 2 1 1 1 . Max in Single Turn 1 | . 1 . . . . . . . . . . . . 1 1 1 1 1 . Garrison Access 4 | . . . . . . . . . . . . . . . . 1 1 . 2 Machines Repaired . | . . . . . . . . . . . . . . . . . . . . Machines Dismantled . | . . . . . . . . . . . . . . . . . . . . Machines Sabotaged . | . . . . . . . . . . . . . . . . . . . . Overloaded Fab Kills . | . . . . . . . . . . . . . . . . . . . . Hacking | -11 -10 -10 -10 -8 -8 -6 -6 -5 -5 -5 -5 -4 -4 -4 -4 -3 -3 -2 -1 --------- Run | Yrd Mat Min Sub Rec Scr Fac DSF Fac Upp Upp Zhi Pro Fac Arm Lab Res Tes Res Acc Machines Accessed 38 | . . . . 6 4 3 . 1 1 . 4 . 1 4 . 2 4 2 6 Terminals 22 | . . . . 6 . 1 . 1 . . . . 1 3 . 1 3 2 4 Fabricators 2 | . . . . . . 1 . . . . . . . 1 . . . . . Repair Stations . | . . . . . . . . . . . . . . . . . . . . Recycling Units . | . . . . . . . . . . . . . . . . . . . . Scanalyzers . | . . . . . . . . . . . . . . . . . . . . Garrison Access 5 | . . . . . . 1 . . . . . . . . . 1 1 . 2 Total Hacks 142 | . . . . 21 21 3 . 14 1 . 17 . 4 15 . 5 16 9 16 Successful 84 | . . . . 8 21 1 . 5 1 . 17 . 2 9 . 3 7 4 6 Failed 56 | . . . . 13 . 2 . 8 . . . . 2 5 . 2 9 5 10 Catastrophic 10 | . . . . 3 . . . 2 . . . . . . . . 2 . 3 Database Lockouts 2 | . . . . . . . . 1 . . . . . 1 . . . . . Manual 55 | . . . . 11 . . . 15 1 . . . 2 5 1 4 5 5 6 Terminals 89 | . . . . 21 . 1 . 14 . . . . 4 10 . 4 13 9 13 Fabricators 6 | . . . . . . 1 . . . . . . . 5 . . . . . Repair Stations . | . . . . . . . . . . . . . . . . . . . . Recycling Units . | . . . . . . . . . . . . . . . . . . . . Scanalyzers . | . . . . . . . . . . . . . . . . . . . . Garrison Access 8 | . . . . . . 1 . . . . . . . . . 1 3 . 3 Terminal Hacks 63 | . . . . 4 21 1 . 4 1 . 17 . 1 5 . 1 3 3 2 Record 18 | . . . . . 13 . . . . . 5 . . . . . . . . Part Schematic 7 | . . . . 2 . . . . . . 4 . . 1 . . . . . Robot Analysis 12 | . . . . 1 7 . . . . . 4 . . . . . . . . Prototype ID Bank 10 | . . . . 1 . . . 2 . . 4 . . 3 . . . . . Open Door 2 | . . . . . . . . . 1 . . . . . . . . . 1 Open DSF 1 | . . . . . . 1 . . . . . . . . . . . . . Level Access Points 2 | . . . . . . . . . . . . . . . . . 1 . 1 Branch Access Points 5 | . . . . . . . . 1 . . . . 1 . . 1 1 1 . Unreport Threat 1 | . . . . . . . . . . . . . . . . . 1 . . Locate Traps 2 | . . . . . . . . . . . . . . 1 . . . 1 . Zone Layout 2 | . . . . . . . . 1 . . . . . . . . . 1 . Proto ID Catalog 1 | . . . . . 1 . . . . . . . . . . . . . . Fabricator Hacks 3 | . . . . . . . . . . . . . . 3 . . . . . Network Status 1 | . . . . . . . . . . . . . . 1 . . . . . Load Schematic 1 | . . . . . . . . . . . . . . 1 . . . . . Build 1 | . . . . . . . . . . . . . . 1 . . . . . Repair Station Hacks . | . . . . . . . . . . . . . . . . . . . . Recycling Unit Hacks . | . . . . . . . . . . . . . . . . . . . . Scanalyzer . | . . . . . . . . . . . . . . . . . . . . Garrison Access Hacks 4 | . . . . . . . . . . . . . . . . 1 1 . 2 Seal Access 4 | . . . . . . . . . . . . . . . . 1 1 . 2 Unauthorized Hacks 13 | . . . . 3 . . . 1 . . . . 1 1 . 1 3 1 2 Terminals 13 | . . . . 3 . . . 1 . . . . 1 1 . 1 3 1 2 Botnet 13 | . . . . 3 . . . 1 . . . . 1 1 . 1 3 1 2 Fabricators . | . . . . . . . . . . . . . . . . . . . . Repair Stations . | . . . . . . . . . . . . . . . . . . . . Recycling Units . | . . . . . . . . . . . . . . . . . . . . Scanalyzers . | . . . . . . . . . . . . . . . . . . . . Garrison Access . | . . . . . . . . . . . . . . . . . . . . Data Cores Recovered . | . . . . . . . . . . . . . . . . . . . . Used . | . . . . . . . . . . . . . . . . . . . . Hacking Detections 13 | . . . . 5 . 2 . . . . . . . 2 . . . . 4 Full Trace Events 3 | . . . . 2 . . . . . . . . . 1 . . . . . Feedback Events . | . . . . . . . . . . . . . . . . . . . . Feedback Blocked . | . . . . . . . . . . . . . . . . . . . . Robot Schematics Acquired 1 | . . . . . . . . . . . . . . . . . 1 . . Robots Built . | . . . . . . . . . . . . . . . . . . . . Authchips . | . . . . . . . . . . . . . . . . . . . . Time . | . . . . . . . . . . . . . . . . . . . . Total Robot Build Rating . | . . . . . . . . . . . . . . . . . . . . Part Schematics Acquired 12 | . . . . 2 . . . . . . 4 . . 1 . . 5 . . Parts Built 1 | . . . . . . . . . . . . . . 1 . . . . . Authchips . | . . . . . . . . . . . . . . . . . . . . Time 93 | . . . . . . . . . . . . . . 93 . . . . . Total Part Build Rating 7 | . . . . . . . . . . . . . . 7 . . . . . Parts Repaired . | . . . . . . . . . . . . . . . . . . . . Time . | . . . . . . . . . . . . . . . . . . . . Parts Recycled . | . . . . . . . . . . . . . . . . . . . . Recycled Matter . | . . . . . . . . . . . . . . . . . . . . Retrieved Matter . | . . . . . . . . . . . . . . . . . . . . Retrieved Components . | . . . . . . . . . . . . . . . . . . . . Parts Scanalyzed . | . . . . . . . . . . . . . . . . . . . . Part Schematics Acquired . | . . . . . . . . . . . . . . . . . . . . Parts Damaged . | . . . . . . . . . . . . . . . . . . . . Bothacking | -11 -10 -10 -10 -8 -8 -6 -6 -5 -5 -5 -5 -4 -4 -4 -4 -3 -3 -2 -1 ------------ Run | Yrd Mat Min Sub Rec Scr Fac DSF Fac Upp Upp Zhi Pro Fac Arm Lab Res Tes Res Acc Used RIF Installer . | . . . . . . . . . . . . . . . . . . . . Robots Hacked . | . . . . . . . . . . . . . . . . . . . . Non-combat . | . . . . . . . . . . . . . . . . . . . . Combat . | . . . . . . . . . . . . . . . . . . . . Robot Hacks Applied . | . . . . . . . . . . . . . . . . . . . . Relay Couplers Released . | . . . . . . . . . . . . . . . . . . . . Fabnet Peak Effective % . | . . . . . . . . . . . . . . . . . . . . Robots Rewired 4 | . . . . . . . . . . . . . . 4 . . . . . Allies Hacked 1 | . . . . . . . . . . . . . . 1 . . . . . Hacks Repelled . | . . . . . . . . . . . . . . . . . . . . Allies | -11 -10 -10 -10 -8 -8 -6 -6 -5 -5 -5 -5 -4 -4 -4 -4 -3 -3 -2 -1 -------- Run | Yrd Mat Min Sub Rec Scr Fac DSF Fac Upp Upp Zhi Pro Fac Arm Lab Res Tes Res Acc Total Allies 14 | . . . . . . . . . . . . . . 14 . . . . . Largest Group 14 | . . . . . . . . . . . . . . 14 . . . . . Highest-Rated Group 737 | . . . . . . . . . . . . . . 737 . . . . . Highest-Rated Ally 64 | . . . . . . . . . . . . . . 64 . . . . . Total Orders . | . . . . . . . . . . . . . . . . . . . . Ally Attacks 68 | . . . . . . . . . . . . . . 68 . . . . . Total Damage 2994 | . . . . . . . . . . . . . . 2994 . . . . . Kills 12 | . . . . . . . . . . . . . . 12 . . . . . Allies Corrupted 1 | . . . . . . . . . . . . . . 1 . . . . . Allies Melted . | . . . . . . . . . . . . . . . . . . . . Intel | -11 -10 -10 -10 -8 -8 -6 -6 -5 -5 -5 -5 -4 -4 -4 -4 -3 -3 -2 -1 ------- Run | Yrd Mat Min Sub Rec Scr Fac DSF Fac Upp Upp Zhi Pro Fac Arm Lab Res Tes Res Acc Active Infowar (turns) 4066 | . . . 334 . . 351 69 146 521 652 360 353 108 309 64 82 157 317 243 Optics 1315 | . . . 334 . . . . . . . . . . 118 64 82 157 317 243 Sensors 3686 | . . . . . . 351 69 146 521 652 349 353 108 309 33 82 157 317 239 Cloaking 2818 | . . . . . . . . . 477 652 360 157 108 309 64 82 157 282 170 Jamming 403 | . . . . . . . . . . . . 196 108 99 . . . . . ECM 766 | . . . . . . . . . . . . . . 156 16 14 29 317 234 Robot Analysis Total 12 | . . . . 1 7 . . . . . 4 . . . . . . . . Derelict Logs Recovered 8 | . . 1 . . 2 . . . 1 2 . 2 . . . . . . . Drone Launches . | . . . . . . . . . . . . . . . . . . . . Drone Recoveries . | . . . . . . . . . . . . . . . . . . . . Exploration | -11 -10 -10 -10 -8 -8 -6 -6 -5 -5 -5 -5 -4 -4 -4 -4 -3 -3 -2 -1 ------------- Run | Yrd Mat Min Sub Rec Scr Fac DSF Fac Upp Upp Zhi Pro Fac Arm Lab Res Tes Res Acc Turns Passed 9680 | 4 100 215 1508 1298 2821 353 69 146 521 652 360 353 108 309 64 82 157 317 243 Spaces Moved 9599 | 3 77 139 873 791 1889 534 99 263 812 662 186 573 225 586 120 273 372 374 748 Core . | . . . . . . . . . . . . . . . . . . . . Treads 3176 | . . . 873 791 1512 . . . . . . . . . . . . . . Legs 691 | 3 77 139 . . 377 95 . . . . . . . . . . . . . Wheels . | . . . . . . . . . . . . . . . . . . . . Hover 1358 | . . . . . . 239 . . . . 100 573 225 221 . . . . . Flight 4374 | . . . . . . 200 99 263 812 662 86 . . 365 120 273 372 374 748 Fastest Speed 13 | 120 120 120 160 160 100 40 37 42 45 45 38 38 32 28 28 25 25 25 13 Average Speed 82 | 120 120 120 160 160 148 56 40 47 47 45 41 38 34 30 28 25 26 25 24 Slowest Speed 300 | 120 120 120 160 160 160 110 45 205 205 45 50 38 38 300 28 25 105 34 25 Overloaded Moves 51 | . . . . . . . . . . . . . . . . . . . 51 Propulsion Burnouts . | . . . . . . . . . . . . . . . . . . . . Robots Hopped 22 | . . . . . . 1 2 1 . 2 . . . . . 1 9 1 5 Potential Cave-ins 4 | . . . . . . . . . . . . 4 . . . . . . . Cave-ins Triggered . | . . . . . . . . . . . . . . . . . . . . Teleports 1 | . . . . . . . . . . . . . . 1 . . . . . Exploration Rate (%) 46 | 2 12 28 52 99 91 20 92 7 87 79 62 73 10 27 95 11 46 12 31 Regions Visited 19 Branch Regions 11 Pre-discovered Areas 4 | . . . . . . . . . . . 3 1 . . . . . . . Known Exits Taken 12 | . . . . . . 1 . 1 1 1 1 1 1 1 1 1 1 1 . Unknown Exits Taken 6 | 1 1 1 1 1 1 . . . . . . . . . . . . . . Scrap Searched 15 | . . 1 5 . 6 . . . . 3 . . . . . . . . . Spaces Dug 30 | . . . 1 . . 3 . 1 . . . 14 2 5 . 1 . 2 1 Terrain Destroyed 123 | . . . 47 . . 3 28 6 1 . . 27 2 5 . 1 . 2 1 Melee 22 | . . . 1 . . 3 . . . . . 7 2 5 . 1 . 2 1 Projectile 27 | . . . . . . . . 6 1 . . 20 . . . . . . . AOE 74 | . . . 46 . . . 28 . . . . . . . . . . . . Terrain Rammed . | . . . . . . . . . . . . . . . . . . . . Walls Destroyed . | . . . . . . . . . . . . . . . . . . . . Machines Disabled . | . . . . . . . . . . . . . . . . . . . . Actions | -11 -10 -10 -10 -8 -8 -6 -6 -5 -5 -5 -5 -4 -4 -4 -4 -3 -3 -2 -1 --------- Run | Yrd Mat Min Sub Rec Scr Fac DSF Fac Upp Upp Zhi Pro Fac Arm Lab Res Tes Res Acc Total 11146 | 3 80 158 946 818 1920 583 119 278 939 1013 456 673 249 703 143 281 405 584 795 Wait 1172 | . . 1 9 22 5 16 10 . 119 353 249 70 17 49 6 . 21 201 24 Move 9536 | 2 76 138 872 790 1888 531 94 260 811 657 185 572 224 585 119 270 354 371 737 Hop 21 | . . . . . . 1 2 1 . 2 . . . . . 1 8 1 5 Pick Up 37 | . 1 1 9 . 4 6 2 2 . 1 1 . . 4 2 2 1 1 . Fast Attach 56 | . . 1 2 . 5 6 7 1 . . 9 . 4 6 5 2 1 2 5 Attach 23 | . . . 1 . . 6 2 3 2 . 2 . 1 1 1 2 . 2 . Detach 24 | . . . 1 . 3 6 . 3 1 . 1 . 1 3 1 1 1 . 2 Swap 32 | 1 2 . 15 1 . . . . . . . 1 . 10 1 . 1 . . Drop 61 | . . 1 14 . 15 8 . 2 . . 3 . . 9 4 1 3 . 1 Fire 66 | . 1 16 13 . . . 2 6 6 . . 20 . . . . 2 . . Melee 67 | . . . 10 5 . 3 . . . . 6 9 2 7 4 2 10 6 3 Ram . | . . . . . . . . . . . . . . . . . . . . Kick . | . . . . . . . . . . . . . . . . . . . . Crush . | . . . . . . . . . . . . . . . . . . . . Escape Stasis 21 | . . . . . . . . . . . . . . . . . 3 . 18 Rewire 29 | . . . . . . . . . . . . . . 29 . . . . . Trap 1 | . . . . . . . . . . . . 1 . . . . . . . Miscellaneous . | . . . . . . . . . . . . . . . . . . . . Route ------- -11/Scrapyard -10/Materials -10/Mines (discovered 2 exits: [*Exi] / [*Sub]) -10/Subcaves -8/Recycling (discovered 2 exits: *Fac / *Scr) -8/Scraptown (discovered 2 exits: *Fac x2) -6/Factory -6/DSF -5/Factory (discovered 2 exits: *Upp x2) -5/Upper Caves -5/Upper Caves -5/Zhirov -4/Proximity Caves -4/Factory (discovered 5 exits: Upp x2 / Ext x2 / *Arm) -4/Armory -4/Lab -3/Research (discovered 2 exits: *Tes x2) -3/Testing -2/Research (discovered 3 exits: *Acc / Qua x2) -1/Access To Fleet Rendezvous History --------- Turn | Location | Event 3 | -11/Scrapyard | Discovered new exit (range 2) 5 | -11/Scrapyard | Entered Materials 19 | -10/Materials | Discovered new exit (range 13) 105 | -10/Materials | Entered Mines 267 | -10/Mines | Deemed a non-threat by the Exiles lab entrance 269 | -10/Mines | Discovered new exit (range 5) 297 | -10/Mines | Received a Rocket Launcher from a helpful Derelict 315 | -10/Mines | Discovered new exit (range 5) 320 | -10/Mines | Entered Subcaves 343 | -10/Subcaves | Build established: Mutant 819 | -10/Subcaves | A swath of the cavern ceiling suddenly collapsed 1825 | -10/Subcaves | Discovered new exit (range 2) 1828 | -10/Subcaves | Entered Recycling 2682 | -8/Recycling | Discovered new exit (range 10) 3081 | -8/Recycling | Scanned before Scraplab entrance 3104 | -8/Recycling | Entered Scraplab 3123 | -8/Recycling | Discovered new exit (range 3) 3126 | -8/Recycling | Entered Scraptown 3622 | -8/Scraptown | Scanned Subdweller tech in exchange for log data 3627 | -8/Scraptown | Learned Research garrison access intel 3629 | -8/Scraptown | Learned Factory stockpile data 3645 | -8/Scraptown | Discovered new exit (range 13) 3746 | -8/Scraptown | Visited Spacefarers 3819 | -8/Scraptown | Visited Red Mages 3976 | -8/Scraptown | Visited Cyclists 4027 | -8/Scraptown | Visited Comm Corps 4122 | -8/Scraptown | Visited TADAMA 4134 | -8/Scraptown | Visited Symbiants 4154 | -8/Scraptown | Visited Junk Repository 4486 | -8/Scraptown | Visited UFD Registry 4486 | -8/Scraptown | Registered with UFD as "Gammasplitter" 4523 | -8/Scraptown | Visited Abandonware Association 4554 | -8/Scraptown | Learned abandonware demo "POISON.EXE" 4619 | -8/Scraptown | Visited Derelict Rescue Squad 4629 | -8/Scraptown | Found DRS Beacon 4665 | -8/Scraptown | Received an X-ray algorithm 4673 | -8/Scraptown | Visited Scrapoid Pod Storage 4710 | -8/Scraptown | Visited Science Guys 4977 | -8/Scraptown | Visited Analyses Database 5015 | -8/Scraptown | Visited Science Testing Area 5033 | -8/Scraptown | Visited Curators Association 5067 | -8/Scraptown | Visited DA-N13 Charitable Foundation 5083 | -8/Scraptown | Found DCF Scrap (26 items) 5150 | -8/Scraptown | Visited Scrap Suit Storage 5499 | -8/Scraptown | Found Scrap Suit 5867 | -8/Scraptown | Met Optimus 5867 | -8/Scraptown | Accepted into 0bPrime 5938 | -8/Scraptown | Discovered new exit (range 3) 5947 | -8/Scraptown | Entered Factory 5947 | -6/Factory | Evolved 8 slots: Propulsion x2, Utility x6 6300 | -6/Factory | Identified exit to DSF 6300 | -6/Factory | Entered DSF 6322 | -6/DSF | Additional patrols routed to DSF 6361 | -6/DSF | Discovered new exit (range 14) 6369 | -6/DSF | Entered Factory 6369 | -5/Factory | Evolved 2 slots: Power x1, Propulsion x1 6390 | -5/Factory | Lost 6 parts (2n2u2w) 6450 | -5/Factory | Ran an X-ray algorithm 6452 | -5/Factory | Identified exit to Upper Caves 6452 | -5/Factory | Central database locked down 6474 | -5/Factory | Lost 3 parts (1p1n1u) 6515 | -5/Factory | Entered Upper Caves 6576 | -5/Upper Caves | Ran an X-ray algorithm 6637 | -5/Upper Caves | Build established: Wizard-Mutant 6788 | -5/Upper Caves | Learned Factory terminal intel 6919 | -5/Upper Caves | Discovered new exit (range 15) 6942 | -5/Upper Caves | Identified exit to Upper Caves 7036 | -5/Upper Caves | Entered another Upper Caves area 7195 | -5/Upper Caves | Learned Factory stockpile data 7201 | -5/Upper Caves | Learned location of 1 exit from Proximity Caves 7229 | -5/Upper Caves | Encountered a Warlord checkpoint 7686 | -5/Upper Caves | Discovered new exit (range 4) 7688 | -5/Upper Caves | Identified exit to Zhirov 7688 | -5/Upper Caves | Entered Zhirov 7688 | -5/Zhirov | Discovered new exit (range 3) 7697 | -5/Zhirov | Met Zhirov 7706 | -5/Zhirov | Learned location of Quarantine (-2) 7706 | -5/Zhirov | Learned location of Testing (-3) 7706 | -5/Zhirov | Learned location of Command (-1) 7710 | -5/Zhirov | Zhirov requested help retrieving the SGEMP Prototype 7719 | -5/Zhirov | Found Alien Artifact 7719 | -5/Zhirov | Identified Integrated Dissipator 7719 | -5/Zhirov | Installed Integrated Dissipator, increased core heat dissipation (+20) 7773 | -5/Zhirov | Found Alien Artifact 7821 | -5/Zhirov | Identified exit to Proximity Caves 8048 | -5/Zhirov | Entered Proximity Caves 8049 | -4/Proximity Caves | Identified exit to Factory 8077 | -4/Proximity Caves | Ambushed by research squad 8109 | -4/Proximity Caves | Learned Research emergency access door positions 8195 | -4/Proximity Caves | Spotted B-86 Titan 8401 | -4/Proximity Caves | Entered Factory 8401 | -4/Factory | Evolved 2 slots: Utility x2 8403 | -4/Factory | Loaded intel: 28 terminal locations 8439 | -4/Factory | Identified exit to Upper Caves 8439 | -4/Factory | Identified exit to Extension 8439 | -4/Factory | Identified exit to Armory 8509 | -4/Factory | Entered Armory 8576 | -4/Armory | Assisted by bots powering up and referring to "LRC-V3" 8580 | -4/Armory | Found Prototype Launcher 8700 | -4/Armory | Fabricated Exp. Optical Array (x1) 8723 | -4/Armory | Lost 7 allies 8784 | -4/Armory | Identified Transdimensional Reconstructor 8784 | -4/Armory | Warped through subspace to slip node 8784 | -4/Armory | Discovered new exit (range 1) 8784 | -4/Armory | Identified exit to Lab 8803 | -4/Armory | Central database locked down 8818 | -4/Armory | Entered Lab 8818 | -4/Lab | Discovered new exit (range 9) 8820 | -4/Lab | Identified exit to Research 8822 | -4/Lab | Unable to decrypt terminal 8822 | -4/Lab | Opened the door to a hidden lab 8822 | -4/Lab | Detected by scanners 8823 | -4/Lab | Gained access to the hidden lab's interior 8824 | -4/Lab | Disabled Active System Cloaker 8828 | -4/Lab | Found Alien Artifact 8828 | -4/Lab | Identified Core Reset Matrix 8828 | -4/Lab | Used Core Reset Matrix 8832 | -4/Lab | Sensed 3 artifacts in vicinity 8837 | -4/Lab | Found Integrated Dissipator 8837 | -4/Lab | Installed Integrated Dissipator, increased core heat dissipation (+20) 8844 | -4/Lab | Found Core Regenerator 8847 | -4/Lab | Found Transdimensional Reconstructor 8862 | -4/Lab | Found Prototype Hackware 8862 | -4/Lab | Identified Quantum Router 8865 | -4/Lab | Found Prototype Protection 8865 | -4/Lab | Identified Exp. Powered Armor 8881 | -4/Lab | Discovered exit to Research (range 6) 8882 | -4/Lab | Entered Research 8882 | -3/Research | Evolved 2 slots: Propulsion x1, Utility x1 8907 | -3/Research | Identified exit to Testing 8946 | -3/Research | Spotted B-86 Titan 8964 | -3/Research | Entered Testing 9021 | -3/Testing | Scanned by Researcher 9060 | -3/Testing | Found Prototype Energy Gun 9060 | -3/Testing | Identified Warp Gun 9071 | -3/Testing | Identified exit to Research 9081 | -3/Testing | Build established: Wizard-Ninja 9095 | -3/Testing | Intercept squad dispatched 9104 | -3/Testing | Spotted Tracker 9107 | -3/Testing | Spotted Combat Programmer 9121 | -3/Testing | Entered Research 9121 | -2/Research | Evolved 2 slots: Utility x2 9151 | -2/Research | Lost 5 parts (1p1n3u) 9229 | -2/Research | Identified exit to Quarantine 9248 | -2/Research | Discovered new exit (range 14) 9251 | -2/Research | Identified exit to Access 9438 | -2/Research | Entered Access 9438 | -1/Access | Evolved 2 slots: Utility x2 9527 | -1/Access | Build established: Hacker-Ninja 9539 | -1/Access | Found Prototype Processor 9539 | -1/Access | Identified Spectral Analyzer 9558 | -1/Access | Identified exit to Surface 9574 | -1/Access | Spotted B-99 Colossus 9594 | -1/Access | Spotted B-99 Colossus 9620 | -1/Access | Spotted B-99 Colossus 9620 | -1/Access | Spotted B-99 Colossus 9626 | -1/Access | Intercept squad dispatched 9666 | -1/Access | Spotted Tracker 9668 | -1/Access | Spotted Tracker 9681 | *** | Heading to fleet! Last Messages --------------- Awaiting botnet instructions. Tracker: "THREAT CONFIRMED. DEPLOY COMBAT PROGRAMMER." 09670_ Cld. Field Propulsion Drive temporarily disabled. 09672_ Dropped ECM Suite. 09675_ Slug penetrates Wall. 09675_ Slug penetrates H-81 Overseer. 09675_ Penetrated by Slug. 09675_ Slug penetrates H-81 Overseer. 09676_ ALERT: Potential suspicious activity detected, Programmers report to Access Zone 3Z. 09677_ Katana destroyed. 09677_ Quantum Reactor destroyed. 09677_ Adv. Reaction Control System destroyed. 09677_ Lrn. Sensor Array destroyed. 09677_ Critical hit (Blast). 09677_ Knocked back. 09679_ Connecting with Terminal... >>Open(Door) Sealed Barrier opened. 09680_ The Access Shell folds into the floor. Map ----- +----------------------------------------------------+ | ????????????????????????????????????????# #?????? | | ????????????????????????????????????????# #?????? | | ????????????????????????????????????????# #?????? | | ????????????????????????????????????????# #?????? | | ????????????????????????????????????????# #?????? | | ????????????????????????????????????????# #?????? | | ????????????????????????????????????????+ #?????? | | ????????????????????????????????????????# #?????? | | ????????????????????????????????????????# #?????? | | ???????????????????????????????????????## ##????? | | ????????#######+######################## ###### | | ??????? R kkk % H | | ??????? s = | | ?????????????????#### ""######### ##### | | ????????????????????# ""#???????##+###???# | | ????????????????????# ""#??????? ????# | | ????????????????????# T#????? ] ??# | | ????????????????????# ""#????# #?# | | ????????????????????# ""#????# #?# | | ???????????????????## ""##???# " #?# | | ???????????????????# #???# """ #?# | | ???????????????????## ##???# """ #?# | | ????????????????????# #????# " #?# | | ????????????????????# #????###########?# | | ????????????????????# #????????????????# | | ????????????????????# @" #????????????????# | | ????????????????????# "" #????????????????# | | ????????????????????# #????????????#####+ | | ????????????????????# #????????????# | | ????????????????????# #????????????# | | ????????????????????#""""""""""#????????????# " | | ????????????????????????????????????????????# """ | | ????????????????????????????????????????????# "" | | ?????????????????????""""""""""?????????????# " | | ????????????????????? ?????????????# | | ?????????????????????? ??????????????# | | ?????????????????????? ??????????????###### | | ?????????????????????? ???????????????????? | | ??????????????????????? ????????????????????? | | ??????????????????????? ????????????????????? | | ??????????????????????? ?????????############ | | ???????????????????????# #?????????# ## | | ???????????????????????# #?????????# ## | | ???????????????????????# #?????????# ## | | ???????????????????????# #?????????# ## " | | ???????????????????????# #?????????# ## " | | ???????????????????????# ########### ## G | | ???????????????????????# # ## ! ## " | | ???????????????????????# # ## ## " | | ???????????????????????# # ## ## | +----------------------------------------------------+ Best States ------------- Heat Dissipation 92 Coolant Potential 50 Energy Generation 47 Energy Capacity 400 Matter Stores 300 Matter Capacity 300 Sight Range 23 Robot Scan Range 18 Terrain Scan Density 10 ECM Strength 1 Jamming Range 14 Cloak Strength 4 Power Amplification 30 Additional Mass Support 12 Evasion (%) 77 Recoil Reduction 2 Offensive Hacking 14 Defensive Hacking 70 Item Schematics ----------------- Adv. Variable Charge Gun | -3/Testing | Archive Tesla Bomb Launcher | -3/Testing | Archive Exp. Cooling System | -3/Testing | Archive Lrn. Phase Cannon | -3/Testing | Archive Adv. EM Disruption Field | -3/Testing | Archive Robot Schematics ------------------ A-15 Conveyor | -3/Testing | Archive Fabricated ------------ Exp. Optical Array | x1 | -4/Armory Repaired ---------- Nothing Alien Tech Used ----------------- Integrated Dissipator Transdimensional Reconstructor Core Reset Matrix Achievements -------------- None Challenges ------------ None Game ------ Seed SpectralAntimissileCycler Manual? 0 Play Time 01:39:02 Cumulative 261.1 hours Start 2025.05.06 @ 21:12:58 End 2025.05.07 @ 21:05:37 Sessions 2 Manual Loads 0 Difficulty Rogue Special Mode None Game No. 185 Rogue 185 Adventurer 0 Explorer 0 Win Type 2 Total 20 Types 16/0/2/2/0/0/0/0/0/0 Lore% 83 Gallery% 70 Achievement% 62 Wizard Run 0 Options --------- Layout 0 ASCII 1 Keyboard 1 Movement Arrows Keybinds 0 Fullscreen 1 Font 18/Terminus Map View 76x50 Zoom Use 0% Tactical HUD 1 Map Filters NONE Filters NONE Steam 1 RUN: 15e84bec-cca3-487c-8f07-00ccc4db4acf